[Event "Late-Titled-Tuesday-Blitz-May-28-2024"]
[Site "Chess.com"]
[Date "2024.05.28"]
[Round "3"]
[White "AsaHoffmann"]
[Black "boguszp"]
[Result "0-1"]
[WhiteElo "2328"]
[BlackElo "2035"]
[TimeControl "180+1"]
[EndTime "14:29:51 PDT"]
[Termination "boguszp won by checkmate"]

1. d4 {[%clk 0:02:50.4]} 1... d5 {[%clk 0:02:59.4]} 2. Bg5 {[%clk 0:02:46.1]}
2... c6 {[%clk 0:02:56.1]} 3. e3 {[%clk 0:02:45.5]} 3... Qa5+ {[%clk 0:02:43.5]}
4. Nd2 {[%clk 0:02:43.8]} 4... Bf5 {[%clk 0:02:39.2]} 5. Nf3 {[%clk 0:02:41.2]}
5... e6 {[%clk 0:02:39.3]} 6. Nh4 {[%clk 0:02:35.1]} 6... Bg6 {[%clk 0:02:36.5]}
7. Nxg6 {[%clk 0:02:34.3]} 7... hxg6 {[%clk 0:02:36.5]} 8. Bd3 {[%clk
0:02:32.6]} 8... Be7 {[%clk 0:02:28]} 9. Bf4 {[%clk 0:02:29.8]} 9... Nf6 {[%clk
0:02:26.7]} 10. h3 {[%clk 0:02:29]} 10... Nbd7 {[%clk 0:02:22.8]} 11. c3 {[%clk
0:02:28.2]} 11... c5 {[%clk 0:02:20.4]} 12. Qe2 {[%clk 0:02:18.4]} 12... Qb6
{[%clk 0:02:12.7]} 13. Rb1 {[%clk 0:02:11.9]} 13... Bd6 {[%clk 0:01:53.9]} 14.
Bxd6 {[%clk 0:01:44.8]} 14... Qxd6 {[%clk 0:01:52.6]} 15. f4 {[%clk 0:01:44.5]}
15... Nh5 {[%clk 0:01:44.3]} 16. Qf2 {[%clk 0:01:40.9]} 16... cxd4 {[%clk
0:01:40.6]} 17. cxd4 {[%clk 0:01:39.5]} 17... Rc8 {[%clk 0:01:40.6]} 18. O-O
{[%clk 0:01:37.1]} 18... Rc7 {[%clk 0:01:22.9]} 19. Bb5 {[%clk 0:01:31]} 19...
O-O {[%clk 0:01:19]} 20. Bxd7 {[%clk 0:01:29.7]} 20... Qxd7 {[%clk 0:01:18]} 21.
Nf3 {[%clk 0:01:29.4]} 21... Nf6 {[%clk 0:01:13.3]} 22. Ne5 {[%clk 0:01:21.7]}
22... Qd6 {[%clk 0:01:12.5]} 23. a3 {[%clk 0:01:15.6]} 23... Ne4 {[%clk
0:01:11.8]} 24. Qh4 {[%clk 0:00:48.5]} 24... Nd2 {[%clk 0:01:04]} 25. Rbd1
{[%clk 0:00:42.3]} 25... Nxf1 {[%clk 0:01:02.9]} 26. Rxf1 {[%clk 0:00:42]} 26...
Rc2 {[%clk 0:01:02.5]} 27. Rf3 {[%clk 0:00:34.2]} 27... Qd8 {[%clk 0:00:53.3]}
28. Qg4 {[%clk 0:00:32]} 28... Qe7 {[%clk 0:00:40.5]} 29. Rg3 {[%clk 0:00:31.3]}
29... Rfc8 {[%clk 0:00:38.4]} 30. Nf3 {[%clk 0:00:30.3]} 30... Rxb2 {[%clk
0:00:35.8]} 31. Ng5 {[%clk 0:00:29.7]} 31... Rc1+ {[%clk 0:00:32.3]} 32. Kh2
{[%clk 0:00:29.5]} 32... Rbb1 {[%clk 0:00:31.5]} 33. Rf3 {[%clk 0:00:27.9]}
33... Rh1+ {[%clk 0:00:27.3]} 34. Kg3 {[%clk 0:00:27.7]} 34... Rb2 {[%clk
0:00:27.4]} 35. Qh4 {[%clk 0:00:26.8]} 35... Qf6 {[%clk 0:00:22.7]} 36. Qh7+
{[%clk 0:00:20]} 36... Kf8 {[%clk 0:00:22.1]} 37. Qh8+ {[%clk 0:00:19.2]} 37...
Ke7 {[%clk 0:00:22.5]} 38. Qb8 {[%clk 0:00:17.9]} 38... a6 {[%clk 0:00:20.9]}
39. Qc7+ {[%clk 0:00:16.3]} 39... Ke8 {[%clk 0:00:20.1]} 40. Qc8+ {[%clk
0:00:14]} 40... Qd8 {[%clk 0:00:18.8]} 41. Qxd8+ {[%clk 0:00:07.3]} 41... Kxd8
{[%clk 0:00:18.3]} 42. Nxf7+ {[%clk 0:00:06.9]} 42... Ke7 {[%clk 0:00:17.6]} 43.
Ne5 {[%clk 0:00:06.4]} 43... Rg1 {[%clk 0:00:15.9]} 44. Nxg6+ {[%clk 0:00:06]}
44... Kf6 {[%clk 0:00:15.9]} 45. Nh4 {[%clk 0:00:05.9]} 45... Ra2 {[%clk
0:00:15.3]} 46. Kg4 {[%clk 0:00:05.9]} 46... Rxa3 {[%clk 0:00:15]} 47. Kh5
{[%clk 0:00:05.9]} 47... a5 {[%clk 0:00:12.3]} 48. g4 {[%clk 0:00:05.7]} 48...
Rb3 {[%clk 0:00:12.1]} 49. g5+ {[%clk 0:00:05.6]} 49... Ke7 {[%clk 0:00:12]} 50.
f5 {[%clk 0:00:05.7]} 50... exf5 {[%clk 0:00:10.3]} 51. Ng6+ {[%clk 0:00:05.7]}
51... Kd7 {[%clk 0:00:08.9]} 52. Nf4 {[%clk 0:00:05.5]} 52... a4 {[%clk
0:00:07.8]} 53. Nxd5 {[%clk 0:00:05.3]} 53... a3 {[%clk 0:00:07.5]} 54. Rxf5
{[%clk 0:00:04.5]} 54... a2 {[%clk 0:00:07]} 55. Rf7+ {[%clk 0:00:04.1]} 55...
Ke6 {[%clk 0:00:07.1]} 56. Nf4+ {[%clk 0:00:02.8]} 56... Kxf7 {[%clk 0:00:06.4]}
57. g6+ {[%clk 0:00:02.5]} 57... Ke7 {[%clk 0:00:05.7]} 58. h4 {[%clk 0:00:02]}
58... a1=Q {[%clk 0:00:05]} 59. Nd5+ {[%clk 0:00:01.7]} 59... Kd6 {[%clk
0:00:04.2]} 60. Nf4 {[%clk 0:00:01.3]} 60... Rxe3 {[%clk 0:00:04.4]} 61. d5
{[%clk 0:00:01]} 61... Re5# {[%clk 0:00:04.6]} 0-1

[Event "Late-Titled-Tuesday-Blitz-May-28-2024"]
[Site "Chess.com"]
[Date "2024.05.28"]
[Round "3"]
[White "BardArtem"]
[Black "KirAk47"]
[Result "1/2-1/2"]
[WhiteElo "2789"]
[BlackElo "2564"]
[TimeControl "180+1"]
[EndTime "14:29:55 PDT"]
[Termination "Game drawn by repetition"]

1. Nf3 {[%clk 0:03:00.9]} 1... d5 {[%clk 0:02:54.5]} 2. b3 {[%clk 0:03:00.1]}
2... Nf6 {[%clk 0:02:54.6]} 3. Bb2 {[%clk 0:02:59.8]} 3... c6 {[%clk 0:02:55]}
4. e3 {[%clk 0:02:59.5]} 4... Bg4 {[%clk 0:02:53.4]} 5. h3 {[%clk 0:02:58.6]}
5... Bh5 {[%clk 0:02:53]} 6. Be2 {[%clk 0:02:54.3]} 6... Nbd7 {[%clk 0:02:52.8]}
7. O-O {[%clk 0:02:52.9]} 7... Qc7 {[%clk 0:02:52.9]} 8. c4 {[%clk 0:02:51.1]}
8... e6 {[%clk 0:02:52.5]} 9. Nc3 {[%clk 0:02:48.1]} 9... Be7 {[%clk 0:02:39]}
10. Rc1 {[%clk 0:02:47.8]} 10... O-O {[%clk 0:02:37.3]} 11. cxd5 {[%clk
0:02:38.2]} 11... exd5 {[%clk 0:02:29.6]} 12. g4 {[%clk 0:02:31.9]} 12... Bg6
{[%clk 0:02:29.5]} 13. g5 {[%clk 0:02:31.8]} 13... Ne4 {[%clk 0:02:01.7]} 14.
Nxd5 {[%clk 0:02:30.9]} 14... Qd6 {[%clk 0:01:58.1]} 15. Nxe7+ {[%clk
0:02:20.9]} 15... Qxe7 {[%clk 0:01:59]} 16. h4 {[%clk 0:02:13.8]} 16... f6
{[%clk 0:01:56.1]} 17. d3 {[%clk 0:02:09.9]} 17... Nd6 {[%clk 0:01:48.1]} 18. e4
{[%clk 0:01:56.4]} 18... fxg5 {[%clk 0:01:46.8]} 19. hxg5 {[%clk 0:01:47.7]}
19... Bh5 {[%clk 0:01:43]} 20. Nh2 {[%clk 0:01:35.1]} 20... Qxg5+ {[%clk
0:01:24.5]} 21. Kh1 {[%clk 0:01:35]} 21... Bg6 {[%clk 0:00:55.6]} 22. Rg1 {[%clk
0:01:00]} 22... Qf4 {[%clk 0:00:51.2]} 23. f3 {[%clk 0:00:59.9]} 23... c5 {[%clk
0:00:17.4]} 24. Qe1 {[%clk 0:00:37.8]} 24... b6 {[%clk 0:00:14.9]} 25. Qg3
{[%clk 0:00:36.6]} 25... Rae8 {[%clk 0:00:13.3]} 26. Qxf4 {[%clk 0:00:34.1]}
26... Rxf4 {[%clk 0:00:14.2]} 27. Rg3 {[%clk 0:00:25.1]} 27... Ne5 {[%clk
0:00:12.2]} 28. d4 {[%clk 0:00:23.2]} 28... cxd4 {[%clk 0:00:11.1]} 29. Bxd4
{[%clk 0:00:24.1]} 29... Nef7 {[%clk 0:00:02.3]} 30. Be3 {[%clk 0:00:20]} 30...
Rh4 {[%clk 0:00:01.9]} 31. Kg2 {[%clk 0:00:19]} 31... Rh5 {[%clk 0:00:01]} 32.
Ng4 {[%clk 0:00:17]} 32... Ra5 {[%clk 0:00:01.5]} 33. a4 {[%clk 0:00:16.8]}
33... Ne5 {[%clk 0:00:01.9]} 34. Nxe5 {[%clk 0:00:14.8]} 34... Raxe5 {[%clk
0:00:02.8]} 35. Bf4 {[%clk 0:00:14.6]} 35... R5e6 {[%clk 0:00:03.4]} 36. Rd1
{[%clk 0:00:15.2]} 36... Nf7 {[%clk 0:00:04.1]} 37. Bc4 {[%clk 0:00:15.7]} 37...
R6e7 {[%clk 0:00:04.2]} 38. Kf2 {[%clk 0:00:15.6]} 38... Kh8 {[%clk 0:00:04.1]}
39. Ke3 {[%clk 0:00:12.9]} 39... Ne5 {[%clk 0:00:03.7]} 40. Bxe5 {[%clk
0:00:07.6]} 40... Rxe5 {[%clk 0:00:04.6]} 41. Rh1 {[%clk 0:00:07.6]} 41... Rh5
{[%clk 0:00:03.3]} 42. Rxh5 {[%clk 0:00:07.9]} 42... Bxh5 {[%clk 0:00:04.2]} 43.
Rg5 {[%clk 0:00:08.3]} 43... Bg6 {[%clk 0:00:04.5]} 44. Rd5 {[%clk 0:00:09]}
44... Re7 {[%clk 0:00:03.5]} 45. Rd8+ {[%clk 0:00:09.1]} 45... Re8 {[%clk
0:00:04.1]} 46. Rd7 {[%clk 0:00:09.5]} 46... h5 {[%clk 0:00:04]} 47. Rxa7 {[%clk
0:00:09.5]} 47... Kh7 {[%clk 0:00:03.9]} 48. Rb7 {[%clk 0:00:07.7]} 48... h4
{[%clk 0:00:04.3]} 49. Rxb6 {[%clk 0:00:07.8]} 49... h3 {[%clk 0:00:04.9]} 50.
Kf2 {[%clk 0:00:08.5]} 50... Rf8 {[%clk 0:00:03.1]} 51. Bf1 {[%clk 0:00:05.5]}
51... Bxe4 {[%clk 0:00:03]} 52. Ke3 {[%clk 0:00:02.8]} 52... Rxf3+ {[%clk
0:00:03.4]} 53. Kxe4 {[%clk 0:00:03]} 53... Rxf1 {[%clk 0:00:04.1]} 54. Rb5
{[%clk 0:00:02.7]} 54... g6 {[%clk 0:00:04.2]} 55. Rb7+ {[%clk 0:00:02.3]} 55...
Kh6 {[%clk 0:00:04.2]} 56. Rb8 {[%clk 0:00:03]} 56... Kg7 {[%clk 0:00:04.7]} 57.
Rb7+ {[%clk 0:00:03.4]} 57... Kh6 {[%clk 0:00:05.3]} 58. Rb8 {[%clk 0:00:03.9]}
58... Kh7 {[%clk 0:00:03.1]} 59. Rb7+ {[%clk 0:00:04.3]} 59... Kg8 {[%clk
0:00:03.3]} 60. Rb8+ {[%clk 0:00:04.8]} 60... Kg7 {[%clk 0:00:03.9]} 61. Rb7+
{[%clk 0:00:05.4]} 61... Kh6 {[%clk 0:00:04.2]} 1/2-1/2

[Event "Late-Titled-Tuesday-Blitz-May-28-2024"]
[Site "Chess.com"]
[Date "2024.05.28"]
[Round "3"]
[White "Dexter_Dyke"]
[Black "Mariia89"]
[Result "1-0"]
[WhiteElo "2446"]
[BlackElo "2203"]
[TimeControl "180+1"]
[EndTime "14:29:57 PDT"]
[Termination "Dexter_Dyke won on time"]

1. e4 {[%clk 0:02:57.1]} 1... c6 {[%clk 0:02:59.2]} 2. d4 {[%clk 0:02:56.6]}
2... d5 {[%clk 0:03:00.1]} 3. exd5 {[%clk 0:02:57]} 3... cxd5 {[%clk 0:03:01]}
4. c4 {[%clk 0:02:57.8]} 4... Nf6 {[%clk 0:03:00.6]} 5. Nc3 {[%clk 0:02:58.4]}
5... e6 {[%clk 0:03:01.1]} 6. Nf3 {[%clk 0:02:58.3]} 6... Be7 {[%clk 0:03:01.7]}
7. a3 {[%clk 0:02:58.4]} 7... O-O {[%clk 0:03:00.5]} 8. Bd3 {[%clk 0:02:59]}
8... dxc4 {[%clk 0:03:00.6]} 9. Bxc4 {[%clk 0:02:59.9]} 9... a6 {[%clk
0:03:01.5]} 10. O-O {[%clk 0:03:00.2]} 10... b5 {[%clk 0:03:02.1]} 11. Bb3
{[%clk 0:02:57.3]} 11... Bb7 {[%clk 0:03:02.8]} 12. Qd3 {[%clk 0:02:57.9]} 12...
Nbd7 {[%clk 0:02:59.8]} 13. Bg5 {[%clk 0:02:57.6]} 13... Re8 {[%clk 0:02:54.6]}
14. Bc2 {[%clk 0:02:57.2]} 14... Nf8 {[%clk 0:02:54.7]} 15. Rad1 {[%clk
0:02:55.8]} 15... Nd5 {[%clk 0:02:49.2]} 16. Bc1 {[%clk 0:02:51.4]} 16... Rc8
{[%clk 0:02:44.8]} 17. Ne5 {[%clk 0:02:46.9]} 17... Bf6 {[%clk 0:02:32.1]} 18.
Rfe1 {[%clk 0:02:46.6]} 18... Ng6 {[%clk 0:02:18]} 19. Ng4 {[%clk 0:02:29]}
19... Be7 {[%clk 0:02:08.1]} 20. Ne2 {[%clk 0:02:05.1]} 20... Qc7 {[%clk
0:02:01.1]} 21. Bb3 {[%clk 0:02:03.7]} 21... Bd6 {[%clk 0:01:26.9]} 22. Bxd5
{[%clk 0:01:40.2]} 22... Bxd5 {[%clk 0:01:26]} 23. Ng3 {[%clk 0:01:41.1]} 23...
Bf4 {[%clk 0:01:19]} 24. Nh5 {[%clk 0:01:33.7]} 24... Bxc1 {[%clk 0:01:11.6]}
25. Nhf6+ {[%clk 0:01:12.2]} 25... gxf6 {[%clk 0:01:11.1]} 26. Nxf6+ {[%clk
0:01:12.6]} 26... Kf8 {[%clk 0:01:06.2]} 27. Nxe8 {[%clk 0:01:12.9]} 27... Kxe8
{[%clk 0:01:06.4]} 28. h4 {[%clk 0:01:12.9]} 28... Bf4 {[%clk 0:00:35.7]} 29. h5
{[%clk 0:01:12]} 29... Nf8 {[%clk 0:00:36.2]} 30. g3 {[%clk 0:01:05.3]} 30...
Bd6 {[%clk 0:00:29.3]} 31. Rd2 {[%clk 0:01:03.4]} 31... Qb7 {[%clk 0:00:28.2]}
32. f4 {[%clk 0:00:59.8]} 32... Bf3 {[%clk 0:00:14.9]} 33. f5 {[%clk 0:00:51.3]}
33... Bg4 {[%clk 0:00:15.1]} 34. fxe6 {[%clk 0:00:50]} 34... fxe6 {[%clk
0:00:13.5]} 35. d5 {[%clk 0:00:49]} 35... Qe7 {[%clk 0:00:08.2]} 36. dxe6 {[%clk
0:00:47.4]} 36... Bc5+ {[%clk 0:00:08.6]} 37. Kh2 {[%clk 0:00:46.5]} 37... Bxe6
{[%clk 0:00:05.9]} 38. Rde2 {[%clk 0:00:41.2]} 38... Rc6 {[%clk 0:00:06.2]} 39.
Qe4 {[%clk 0:00:36.3]} 39... Qd7 {[%clk 0:00:05.4]} 40. Qf5 {[%clk 0:00:26]}
40... Kd8 {[%clk 0:00:04.6]} 41. Qf6+ {[%clk 0:00:26]} 41... Kc7 {[%clk
0:00:04.4]} 42. Qf4+ {[%clk 0:00:23.4]} 42... Bd6 {[%clk 0:00:04.5]} 43. Qf2
{[%clk 0:00:23.1]} 43... Bd5 {[%clk 0:00:04.2]} 44. Rd2 {[%clk 0:00:22.9]} 44...
Qf7 {[%clk 0:00:03.7]} 45. Qe2 {[%clk 0:00:19.4]} 45... Ne6 {[%clk 0:00:03.2]}
46. Rf1 {[%clk 0:00:19.3]} 46... Qg7 {[%clk 0:00:02.7]} 47. Qf2 {[%clk
0:00:18.3]} 47... Ng5 {[%clk 0:00:02.8]} 48. Rxd5 {[%clk 0:00:16.3]} 48... Qd7
{[%clk 0:00:01.1]} 49. Qf5 {[%clk 0:00:15.1]} 49... Qxf5 {[%clk 0:00:01.2]} 50.
Rdxf5 {[%clk 0:00:16]} 50... Nf3+ {[%clk 0:00:01.9]} 51. R1xf3 {[%clk
0:00:16.1]} 51... Rc2+ {[%clk 0:00:02.3]} 52. Kh3 {[%clk 0:00:16.1]} 52... Rxb2
{[%clk 0:00:02.9]} 53. Rf7+ {[%clk 0:00:17]} 53... Kb6 {[%clk 0:00:03.1]} 54.
Rxh7 {[%clk 0:00:16.4]} 54... Bc5 {[%clk 0:00:03.5]} 55. Rh6+ {[%clk 0:00:16.2]}
55... Ka5 {[%clk 0:00:03.9]} 56. Rc6 {[%clk 0:00:16.6]} 56... Bd4 {[%clk
0:00:03.9]} 57. h6 {[%clk 0:00:17.2]} 57... Rb1 {[%clk 0:00:03.6]} 58. Rd6
{[%clk 0:00:16.9]} 58... Rh1+ {[%clk 0:00:03.5]} 59. Kg4 {[%clk 0:00:16.4]}
59... Bc3 {[%clk 0:00:03]} 60. Rxc3 {[%clk 0:00:16]} 1-0

[Event "Late-Titled-Tuesday-Blitz-May-28-2024"]
[Site "Chess.com"]
[Date "2024.05.28"]
[Round "3"]
[White "MusicCityMaster"]
[Black "tusplingher"]
[Result "0-1"]
[WhiteElo "2388"]
[BlackElo "2564"]
[TimeControl "180+1"]
[EndTime "14:29:59 PDT"]
[Termination "tusplingher won on time"]

1. e4 {[%clk 0:02:53.1]} 1... c5 {[%clk 0:02:58.5]} 2. Nf3 {[%clk 0:02:52.9]}
2... d6 {[%clk 0:02:58.7]} 3. d4 {[%clk 0:02:53.5]} 3... Nf6 {[%clk 0:02:58.3]}
4. Nc3 {[%clk 0:02:52.8]} 4... cxd4 {[%clk 0:02:58.5]} 5. Nxd4 {[%clk
0:02:53.7]} 5... a6 {[%clk 0:02:59.3]} 6. Bc4 {[%clk 0:02:54.1]} 6... e6 {[%clk
0:02:58.3]} 7. Bb3 {[%clk 0:02:54.6]} 7... Nbd7 {[%clk 0:02:58.4]} 8. Qe2 {[%clk
0:02:54.9]} 8... Nc5 {[%clk 0:02:58.8]} 9. g4 {[%clk 0:02:53.9]} 9... e5 {[%clk
0:02:56.2]} 10. Nf5 {[%clk 0:02:53]} 10... g6 {[%clk 0:02:56]} 11. g5 {[%clk
0:02:47.5]} 11... Nh5 {[%clk 0:02:45.1]} 12. Nh6 {[%clk 0:02:11.9]} 12... Bxh6
{[%clk 0:02:39.5]} 13. gxh6 {[%clk 0:02:12.8]} 13... Nxb3 {[%clk 0:02:39.8]} 14.
axb3 {[%clk 0:02:12.6]} 14... Be6 {[%clk 0:02:37.3]} 15. Be3 {[%clk 0:02:11.3]}
15... Qh4 {[%clk 0:02:36.1]} 16. O-O-O {[%clk 0:02:08.8]} 16... Rd8 {[%clk
0:02:31.9]} 17. f3 {[%clk 0:01:53.6]} 17... O-O {[%clk 0:02:30.2]} 18. Rhg1
{[%clk 0:01:51.1]} 18... Nf4 {[%clk 0:02:15.6]} 19. Bxf4 {[%clk 0:01:48.2]}
19... exf4 {[%clk 0:02:09.4]} 20. Rd4 {[%clk 0:01:34.4]} 20... Qxh6 {[%clk
0:02:00.9]} 21. Rgd1 {[%clk 0:01:33.1]} 21... b5 {[%clk 0:01:51.9]} 22. Rxd6
{[%clk 0:01:29]} 22... Rc8 {[%clk 0:01:51]} 23. Rxa6 {[%clk 0:01:26.5]} 23... b4
{[%clk 0:01:49.3]} 24. Nd5 {[%clk 0:01:16.9]} 24... Bxd5 {[%clk 0:01:48.6]} 25.
exd5 {[%clk 0:01:17.6]} 25... Rfe8 {[%clk 0:01:47]} 26. Qd2 {[%clk 0:01:16.7]}
26... Qh3 {[%clk 0:01:36.8]} 27. Qxf4 {[%clk 0:01:12.4]} 27... Qg2 {[%clk
0:01:28.2]} 28. Rc6 {[%clk 0:01:09.9]} 28... Ra8 {[%clk 0:01:17.2]} 29. Kb1
{[%clk 0:01:08.2]} 29... Qe2 {[%clk 0:01:15.1]} 30. Rg1 {[%clk 0:00:53.7]} 30...
Qf2 {[%clk 0:01:04.1]} 31. Rc1 {[%clk 0:00:51.5]} 31... Qa7 {[%clk 0:01:03.6]}
32. c3 {[%clk 0:00:32.5]} 32... Re2 {[%clk 0:00:51.8]} 33. Rc8+ {[%clk
0:00:27.6]} 33... Rxc8 {[%clk 0:00:50.9]} 34. Qxb4 {[%clk 0:00:22.1]} 34... Ra8
{[%clk 0:00:45.8]} 35. Qa4 {[%clk 0:00:16.4]} 35... Qb7 {[%clk 0:00:28.4]} 36.
Qc4 {[%clk 0:00:13.1]} 36... Ree8 {[%clk 0:00:21.7]} 37. b4 {[%clk 0:00:12.8]}
37... Rac8 {[%clk 0:00:21.6]} 38. Qd4 {[%clk 0:00:12.2]} 38... Red8 {[%clk
0:00:21.4]} 39. d6 {[%clk 0:00:11.1]} 39... Qc6 {[%clk 0:00:19.7]} 40. Rd1
{[%clk 0:00:11.1]} 40... Qxf3 {[%clk 0:00:19.5]} 41. c4 {[%clk 0:00:10.6]} 41...
Qf5+ {[%clk 0:00:18.6]} 42. Rd3 {[%clk 0:00:09.2]} 42... Qf1+ {[%clk 0:00:15.9]}
43. Kc2 {[%clk 0:00:08.4]} 43... Qe2+ {[%clk 0:00:16]} 44. Kc3 {[%clk
0:00:07.8]} 44... Qe1+ {[%clk 0:00:16.4]} 45. Kc2 {[%clk 0:00:07.7]} 45... Rc6
{[%clk 0:00:16]} 46. c5 {[%clk 0:00:06.8]} 46... Qe6 {[%clk 0:00:13.5]} 47. b5
{[%clk 0:00:06.8]} 47... Rdxd6 {[%clk 0:00:11.8]} 48. Qxd6 {[%clk 0:00:03.8]}
48... Rxd6 {[%clk 0:00:11.9]} 49. cxd6 {[%clk 0:00:03]} 49... Qc4+ {[%clk
0:00:11.6]} 50. Kd2 {[%clk 0:00:02]} 50... Qb4+ {[%clk 0:00:12.1]} 51. Kc2
{[%clk 0:00:01.8]} 51... Qc5+ {[%clk 0:00:09.4]} 52. Kd2 {[%clk 0:00:02.7]}
52... Qxb5 {[%clk 0:00:07.8]} 53. d7 {[%clk 0:00:02.3]} 53... Qa5+ {[%clk
0:00:08.4]} 54. Kc2 {[%clk 0:00:01.8]} 54... Qd8 {[%clk 0:00:09.3]} 55. Kc3
{[%clk 0:00:01.4]} 55... Kf8 {[%clk 0:00:09.7]} 56. b3 {[%clk 0:00:02.2]} 56...
Ke7 {[%clk 0:00:10.2]} 57. b4 {[%clk 0:00:03.1]} 57... Qc7+ {[%clk 0:00:10.3]}
58. Kb3 {[%clk 0:00:03.1]} 58... Kd8 {[%clk 0:00:11]} 59. b5 {[%clk 0:00:03]}
59... Qxh2 {[%clk 0:00:11]} 60. Kb4 {[%clk 0:00:03.9]} 60... Qf4+ {[%clk
0:00:10.8]} 61. Kc5 {[%clk 0:00:04.1]} 61... Qc7+ {[%clk 0:00:11.3]} 62. Kb4
{[%clk 0:00:03.9]} 62... h5 {[%clk 0:00:10.9]} 63. Rd5 {[%clk 0:00:03.1]} 63...
h4 {[%clk 0:00:10.7]} 64. Rc5 {[%clk 0:00:03.5]} 64... Qd6 {[%clk 0:00:10.4]}
65. b6 {[%clk 0:00:04.4]} 65... Qxb6+ {[%clk 0:00:10.5]} 66. Kc4 {[%clk
0:00:04.3]} 66... Qxc5+ {[%clk 0:00:11.1]} 67. Kxc5 {[%clk 0:00:04.6]} 67...
Kxd7 {[%clk 0:00:11.8]} 0-1

[Event "Late-Titled-Tuesday-Blitz-May-28-2024"]
[Site "Chess.com"]
[Date "2024.05.28"]
[Round "3"]
[White "GP9isback23"]
[Black "Rud_Makarian"]
[Result "1/2-1/2"]
[WhiteElo "2680"]
[BlackElo "2948"]
[TimeControl "180+1"]
[EndTime "14:30:03 PDT"]
[Termination "Game drawn - insufficient material"]

1. d4 {[%clk 0:03:00.9]} 1... Nf6 {[%clk 0:02:59.1]} 2. Nf3 {[%clk 0:03:00.7]}
2... c5 {[%clk 0:02:57.9]} 3. e3 {[%clk 0:03:00.7]} 3... d5 {[%clk 0:02:57.1]}
4. Be2 {[%clk 0:03:00.8]} 4... cxd4 {[%clk 0:02:56.6]} 5. exd4 {[%clk
0:03:00.6]} 5... Nc6 {[%clk 0:02:57.2]} 6. O-O {[%clk 0:03:00.8]} 6... Bg4
{[%clk 0:02:55.3]} 7. c3 {[%clk 0:02:59.7]} 7... e6 {[%clk 0:02:54.8]} 8. Bf4
{[%clk 0:02:59.8]} 8... Bd6 {[%clk 0:02:54.2]} 9. Bxd6 {[%clk 0:02:59.9]} 9...
Qxd6 {[%clk 0:02:55.1]} 10. Nbd2 {[%clk 0:03:00.1]} 10... O-O {[%clk 0:02:55.1]}
11. Re1 {[%clk 0:03:00.3]} 11... Nd7 {[%clk 0:02:44.9]} 12. a4 {[%clk
0:02:58.7]} 12... h6 {[%clk 0:02:43.8]} 13. a5 {[%clk 0:02:52.1]} 13... Rab8
{[%clk 0:02:41.9]} 14. h3 {[%clk 0:02:48.7]} 14... Bf5 {[%clk 0:02:41.7]} 15.
Qa4 {[%clk 0:02:30.9]} 15... Qc7 {[%clk 0:02:36]} 16. Bb5 {[%clk 0:02:26.9]}
16... Rfc8 {[%clk 0:02:32.4]} 17. Ra2 {[%clk 0:02:21.5]} 17... a6 {[%clk
0:02:08.6]} 18. Bf1 {[%clk 0:02:16.3]} 18... Re8 {[%clk 0:02:00.8]} 19. Raa1
{[%clk 0:02:14.3]} 19... Rbd8 {[%clk 0:01:56.1]} 20. Qa3 {[%clk 0:02:12.3]}
20... e5 {[%clk 0:01:51.3]} 21. dxe5 {[%clk 0:02:08.2]} 21... Ndxe5 {[%clk
0:01:52.2]} 22. Qc5 {[%clk 0:01:59.2]} 22... Nxf3+ {[%clk 0:01:34.5]} 23. Nxf3
{[%clk 0:01:57.8]} 23... Rxe1 {[%clk 0:01:33.3]} 24. Nxe1 {[%clk 0:01:51.3]}
24... Qd6 {[%clk 0:01:17.1]} 25. Qb6 {[%clk 0:01:39.9]} 25... Rd7 {[%clk
0:01:02]} 26. Bd3 {[%clk 0:01:33.6]} 26... Be4 {[%clk 0:00:55.4]} 27. Rd1 {[%clk
0:01:21.3]} 27... Qe6 {[%clk 0:00:50.5]} 28. Bf1 {[%clk 0:01:15.5]} 28... Ne5
{[%clk 0:00:42.3]} 29. Qd4 {[%clk 0:01:08.7]} 29... Nc6 {[%clk 0:00:39.4]} 30.
Qb6 {[%clk 0:01:07.4]} 30... Ne5 {[%clk 0:00:39.3]} 31. Qd4 {[%clk 0:01:06.6]}
31... Bg6 {[%clk 0:00:35.1]} 32. Qe3 {[%clk 0:00:54.8]} 32... Nc6 {[%clk
0:00:30.9]} 33. Qb6 {[%clk 0:00:52.4]} 33... Kh7 {[%clk 0:00:29.4]} 34. Nf3
{[%clk 0:00:49.1]} 34... Be4 {[%clk 0:00:17.7]} 35. Bd3 {[%clk 0:00:47.2]} 35...
f5 {[%clk 0:00:12.5]} 36. Be2 {[%clk 0:00:34.3]} 36... Bxf3 {[%clk 0:00:11.5]}
37. Bxf3 {[%clk 0:00:34.3]} 37... Qf7 {[%clk 0:00:09.1]} 38. Qc5 {[%clk
0:00:32.5]} 38... Ne7 {[%clk 0:00:07.6]} 39. c4 {[%clk 0:00:28.7]} 39... Qf6
{[%clk 0:00:05.1]} 40. cxd5 {[%clk 0:00:27.5]} 40... Qd6 {[%clk 0:00:03.1]} 41.
Qc4 {[%clk 0:00:25.7]} 41... Ng6 {[%clk 0:00:01.9]} 42. Qd4 {[%clk 0:00:24]}
42... Ne5 {[%clk 0:00:02.3]} 43. Be2 {[%clk 0:00:24.3]} 43... g5 {[%clk
0:00:02.7]} 44. f4 {[%clk 0:00:18.5]} 44... Ng6 {[%clk 0:00:03]} 45. fxg5 {[%clk
0:00:18]} 45... hxg5 {[%clk 0:00:03.6]} 46. Bh5 {[%clk 0:00:15.6]} 46... Nf4
{[%clk 0:00:03]} 47. Bf3 {[%clk 0:00:15.6]} 47... g4 {[%clk 0:00:01.6]} 48. hxg4
{[%clk 0:00:15.6]} 48... fxg4 {[%clk 0:00:02.5]} 49. Qe4+ {[%clk 0:00:14.7]}
49... Kh6 {[%clk 0:00:02.8]} 50. Bxg4 {[%clk 0:00:14.8]} 50... Rg7 {[%clk
0:00:03.6]} 51. Qf5 {[%clk 0:00:08]} 51... Qc5+ {[%clk 0:00:03.1]} 52. Kh2
{[%clk 0:00:06.6]} 52... Qd6 {[%clk 0:00:04]} 53. Kh1 {[%clk 0:00:05.9]} 53...
Rg5 {[%clk 0:00:04.4]} 54. Qd7 {[%clk 0:00:03.4]} 54... Qxd7 {[%clk 0:00:04]}
55. Bxd7 {[%clk 0:00:03.6]} 55... Nxd5 {[%clk 0:00:04.6]} 56. Be6 {[%clk
0:00:03.4]} 56... Ne3 {[%clk 0:00:04.6]} 57. Re1 {[%clk 0:00:01.9]} 57... Nxg2
{[%clk 0:00:04.1]} 58. Rg1 {[%clk 0:00:01.6]} 58... Nf4 {[%clk 0:00:04.1]} 59.
Rxg5 {[%clk 0:00:01.4]} 59... Kxg5 {[%clk 0:00:04.8]} 60. Bc8 {[%clk 0:00:02]}
60... Nd3 {[%clk 0:00:04.7]} 61. Bxb7 {[%clk 0:00:02.2]} 61... Nxb2 {[%clk
0:00:04.8]} 62. Bxa6 {[%clk 0:00:02.7]} 62... Na4 {[%clk 0:00:05.5]} 63. Bb5
{[%clk 0:00:02.4]} 63... Nc5 {[%clk 0:00:06.1]} 64. a6 {[%clk 0:00:02.9]} 64...
Nxa6 {[%clk 0:00:06.5]} 1/2-1/2